fUST/lending_fUST_20250215
["ID","MTS","AMOUNT","RATE_DAILY","PERIOD"]
[353134093,1739592643799,-500.0,8.984e-05,2]
[353134095,1739592643809,-1412.23,8.984e-05,2]
[353134097,1739592643819,-500.0,8.984e-05,2]
[353134099,1739592643828,-500.0,8.984e-05,2]
[353134101,1739592643838,-500.0,8.985e-05,2]
[353134103,1739592643847,-1308.41,8.985e-05,2]
[353134105,1739592643857,-501.68147153,8.985e-05,2]
[353134107,1739592643866,-500.0,8.985e-05,2]
[353134110,1739592643875,-500.0,8.985e-05,2]
[353134112,1739592643885,-605.42,8.985e-05,2]
[353134114,1739592643895,-500.0,8.985e-05,2]
[353134116,1739592643905,-1421.67,8.985e-05,2]
[353134117,1739592643921,-1326.55,8.985e-05,2]
[353134118,1739592643931,-585.82,8.985e-05,2]
[353134119,1739592643940,-3052.99,8.985e-05,2]
[353134120,1739592643949,-500.0,8.985e-05,2]
[353134121,1739592643959,-1399.22,8.985e-05,2]
[353134122,1739592643968,-500.0,8.985e-05,2]
[353134123,1739592643978,-500.0,8.985e-05,2]
[353134124,1739592643988,-866.46,8.985e-05,2]
[353134125,1739592643998,-8024.01365838,8.985e-05,2]
[353135424,1739592787610,6164.7098299,7.987e-05,2]
[353135428,1739593073718,1100.47,0.00018,30]
[353135429,1739593267053,1000.0,0.00018,30]
[353135432,1739593387474,1000.0,0.00018,30]
[353135478,1739593832014,-212.597445,8.902e-05,2]
[353135479,1739593832024,-300.0,8.98e-05,2]
[353135480,1739593832034,-500.0,8.98e-05,2]
[353135481,1739593832044,-500.0,8.981e-05,2]
[353135482,1739593832054,-500.0,8.981e-05,2]
[353135483,1739593832063,-500.0,8.981e-05,2]
[353135484,1739593832072,-3058.52,8.981e-05,2]
[353135485,1739593832082,-512.67822234,8.981e-05,2]
[353135549,1739593837803,-500.0,8.98e-05,2]
[353135550,1739593837813,-1058.82798773,8.981e-05,2]
[353135551,1739593837824,-433.91181625,8.981e-05,2]
[353135756,1739593840029,-500.0,8.98e-05,2]
[353135758,1739593840039,-736.45614235,8.981e-05,2]
[353136041,1739593842823,-500.0,8.98e-05,2]
[353136043,1739593842832,-1834.52853655,8.981e-05,2]
[353136235,1739593845878,-500.0,8.98e-05,2]
[353136237,1739593845887,-476.0,8.981e-05,2]
[353138354,1739593869467,12309.5441383,7.985e-05,2]
[353138679,1739594504454,4643.0631065,0.00018,30]
[353138680,1739594958151,11614.6868816,7.981e-05,2]
[353138685,1739594959892,297.03,0.00019,120]
[353138686,1739595000478,9344.43,0.00019,120]
[353138939,1739595037832,-212.5974451,8.899e-05,2]
[353138940,1739595037842,-300.0,8.976e-05,2]
[353138941,1739595037851,-173.38688327,8.977e-05,2]
[353138942,1739595037868,-6283.62311673,8.977e-05,2]
[353138943,1739595037877,-4562.1,8.977e-05,2]
[353138944,1739595037888,-524.00264632,8.977e-05,2]
[353139308,1739595043091,-689.3147287,8.977e-05,2]
[353139323,1739595045966,-527.21262498,8.977e-05,2]
[353139326,1739595045977,-1353.39,8.977e-05,2]
[353139328,1739595045986,-500.0,8.977e-05,2]
[353139330,1739595045995,-2931.08,8.977e-05,2]
[353139332,1739595046004,-500.0,8.977e-05,2]
[353139333,1739595046014,-544.94607858,8.978e-05,2]
[353139335,1739595046023,-500.0,8.978e-05,2]
[353139337,1739595046033,-444.59501055,8.978e-05,2]
[353139339,1739595046043,-500.0,8.978e-05,2]
[353139342,1739595046053,-500.0,8.978e-05,2]
[353139344,1739595046063,-500.0,8.978e-05,2]
[353139345,1739595046072,-500.0,8.978e-05,2]
[353139348,1739595046082,-500.0,8.978e-05,2]
[353139350,1739595046091,-500.0,8.978e-05,2]
[353139352,1739595046100,-500.0,8.978e-05,2]
[353139353,1739595046111,-124.14843879,8.978e-05,2]
[353139622,1739595060188,909.84501414,8.845e-05,2]
[353139743,1739596238191,-212.5974451,8.899e-05,2]
[353139745,1739596238201,-1311.9695869,8.974e-05,2]
[353139957,1739596240350,-356.0404131,8.974e-05,2]
[353139959,1739596240361,-294.61060078,8.974e-05,2]
[353139961,1739596240379,-5.38939922,8.974e-05,2]
[353139963,1739596240389,-369.49955778,8.975e-05,2]
[353140237,1739596243199,-130.50044222,8.975e-05,2]
[353140239,1739596243209,-409.07980272,8.975e-05,2]
[353140241,1739596243221,-358.08949814,8.975e-05,2]
[353140243,1739596243233,-1085.07349445,8.975e-05,2]
[353140247,1739596243258,-735.09672666,8.975e-05,2]
[353140249,1739596243269,-221.62047803,8.975e-05,2]
[353140251,1739596243279,-500.0,8.975e-05,2]
[353140253,1739596243289,-830.35,8.975e-05,2]
[353140255,1739596243299,-513.87932497,8.975e-05,2]
[353140258,1739596243323,-375.481998,8.975e-05,2]
[353140559,1739596246192,-6862.80867703,8.975e-05,2]
[353140561,1739596246208,-910.91,8.975e-05,2]
[353140564,1739596246223,-1103.88,8.975e-05,2]
[353140566,1739596246238,-543.42,8.975e-05,2]
[353140569,1739596246252,-500.0,8.975e-05,2]
[353140571,1739596246267,-500.0,8.975e-05,2]
[353140574,1739596246282,-500.0,8.975e-05,2]
[353140577,1739596246296,-316.56323592,8.975e-05,2]
[353140579,1739596246312,-698.66,8.975e-05,2]
[353140582,1739596246327,-16110.33,8.975e-05,2]
[353140584,1739596246343,-500.0,8.975e-05,2]
[353140587,1739596246358,-6187.96,8.975e-05,2]
[353140588,1739596246368,-500.0,8.975e-05,2]
[353140591,1739596246378,-5923.97,8.975e-05,2]
[353140593,1739596246390,-500.0,8.975e-05,2]
[353140595,1739596246400,-4372.01,8.975e-05,2]
[353140597,1739596246411,-7112.44001683,8.975e-05,2]
[353140623,1739596246650,-334.16998317,8.975e-05,2]
[353140625,1739596246660,-238.33001683,8.975e-05,2]
[353140991,1739596316300,18739.1121226,7.977e-05,2]
[353140998,1739597280205,274.0,0.00018,30]
[353141044,1739597432373,-222.1581647,8.891e-05,2]
[353141046,1739597432383,-500.0,8.953e-05,2]
[353141048,1739597432393,-502.98565768,8.953e-05,2]
[353141050,1739597432403,-500.0,8.953e-05,2]
[353141052,1739597432413,-300.0,8.97e-05,2]
[353141054,1739597432422,-5062.87077259,8.971e-05,2]
[353141056,1739597432434,-298.20582391,8.971e-05,2]
[353141058,1739597432446,-569.0534035,8.971e-05,2]
[353141060,1739597432456,-989.81304023,8.971e-05,2]
[353141062,1739597432468,-1163.44214524,8.971e-05,2]
[353141085,1739597438171,-2036.58481453,8.971e-05,2]
[353141086,1739597438181,-1598.51,8.971e-05,2]
[353141087,1739597438191,-1297.0,8.971e-05,2]
[353141088,1739597438200,-500.0,8.971e-05,2]
[353141089,1739597438210,-500.0,8.971e-05,2]
[353141090,1739597438220,-500.0,8.971e-05,2]
[353141091,1739597438229,-2691.92,8.971e-05,2]
[353141092,1739597438239,-500.0,8.971e-05,2]
[353141094,1739597438248,-500.0,8.972e-05,2]
[353141095,1739597438258,-500.0,8.972e-05,2]
[353141096,1739597438267,-506.96710252,8.972e-05,2]
[353141097,1739597438277,-1478.24,8.972e-05,2]
[353141098,1739597438287,-1253.89,8.972e-05,2]
[353141099,1739597438297,-500.0,8.972e-05,2]
[353141100,1739597438307,-500.0,8.972e-05,2]
[353141101,1739597438317,-1212.64,8.972e-05,2]
[353141102,1739597438326,-2295.64,8.972e-05,2]
[353141103,1739597438351,-500.0,8.972e-05,2]
[353141104,1739597438363,-500.0,8.972e-05,2]
[353141105,1739597438375,-580.2,8.972e-05,2]
[353141106,1739597438385,-2040.04,8.972e-05,2]
[353141107,1739597438397,-1183.09,8.972e-05,2]
[353141108,1739597438408,-500.0,8.972e-05,2]
[353141109,1739597438418,-500.0,8.972e-05,2]
[353141110,1739597438428,-500.0,8.972e-05,2]
[353141111,1739597438438,-1249.95,8.972e-05,2]
[353141112,1739597438449,-500.0,8.972e-05,2]
[353141113,1739597438459,-500.0,8.972e-05,2]
[353141114,1739597438470,-732.73198079,8.972e-05,2]
[353141115,1739597438484,-1076.48801921,8.972e-05,2]
[353141116,1739597438495,-1362.43,8.972e-05,2]
[353141117,1739597438505,-1271.28,8.972e-05,2]
[353141118,1739597438515,-632.42,8.972e-05,2]
[353141119,1739597438525,-561.41,8.972e-05,2]
[353141120,1739597438536,-500.0,8.972e-05,2]
[353141121,1739597438545,-1340.92,8.972e-05,2]
[353141122,1739597438555,-500.0,8.972e-05,2]
[353141123,1739597438566,-500.0,8.972e-05,2]
[353141124,1739597438576,-500.0,8.972e-05,2]
[353141125,1739597438587,-500.0,8.972e-05,2]
[353141126,1739597438597,-915.57,8.972e-05,2]
[353141127,1739597438608,-500.0,8.972e-05,2]
[353141128,1739597438618,-1982.57,8.972e-05,2]
[353141129,1739597438628,-500.0,8.972e-05,2]
[353141130,1739597438638,-2543.5,8.972e-05,2]
[353141131,1739597438647,-549.9,8.972e-05,2]
[353141132,1739597438658,-151.0,8.972e-05,2]
[353141133,1739597438668,-151.0,8.972e-05,2]
[353141134,1739597438678,-151.0,8.972e-05,2]
[353141135,1739597438688,-151.0,8.972e-05,2]
[353141136,1739597438699,-190.392841,8.972e-05,2]
[353141137,1739597438709,-500.0,8.972e-05,2]
[353141138,1739597438720,-606.09498035,8.972e-05,2]
[353141139,1739597438730,-500.0,8.972e-05,2]
[353141140,1739597438744,-500.0,8.972e-05,2]
[353141141,1739597438755,-500.0,8.972e-05,2]
[353141142,1739597438765,-500.0,8.972e-05,2]
[353141143,1739597438775,-500.0,8.972e-05,2]
[353141144,1739597438787,-242.68308728,8.972e-05,2]
[353141145,1739597438797,-1207.3,8.972e-05,2]
[353141146,1739597438807,-795.76,8.972e-05,2]
[353141147,1739597438819,-7429.16,8.972e-05,2]
[353141148,1739597438830,-500.0,8.972e-05,2]
[353141149,1739597438840,-500.0,8.972e-05,2]
[353141150,1739597438850,-568.59,8.972e-05,2]
[353141151,1739597438861,-500.0,8.972e-05,2]
[353141152,1739597438871,-591.88,8.972e-05,2]
[353141153,1739597438881,-752.63,8.972e-05,2]
[353141154,1739597438891,-872.95,8.972e-05,2]
[353141155,1739597438901,-551.43,8.972e-05,2]
[353141156,1739597438912,-1989.49,8.972e-05,2]
[353141157,1739597438922,-500.0,8.972e-05,2]
[353141158,1739597438932,-500.0,8.972e-05,2]
[353141159,1739597438942,-7198.53,8.972e-05,2]
[353141160,1739597438952,-501.32430124,8.972e-05,2]
[353141161,1739597438961,-500.0,8.972e-05,2]
[353141162,1739597438971,-520.78,8.972e-05,2]
[353141163,1739597438981,-540.2,8.972e-05,2]
[353141164,1739597438991,-729.61,8.972e-05,2]
[353141165,1739597439001,-95.45557699,8.972e-05,2]
[353141166,1739597439015,-3768.05442301,8.972e-05,2]
[353141167,1739597439025,-42.93827298,8.972e-05,2]
[353141168,1739597439046,-457.06172702,8.972e-05,2]
[353141169,1739597439055,-3225.53,8.972e-05,2]
[353141170,1739597439066,-500.0,8.972e-05,2]
[353141171,1739597439076,-204.40614048,8.972e-05,2]
[353141173,1739597440540,-354.16468731,8.972e-05,2]
[353141174,1739597440551,-500.0,8.972e-05,2]
[353141175,1739597440561,-500.0,8.972e-05,2]
[353141176,1739597440571,-744.85876836,8.972e-05,2]
[353141177,1739597440734,-536.49123164,8.972e-05,2]
[353141178,1739597440748,-500.0,8.972e-05,2]
[353141179,1739597440758,-790.66395576,8.972e-05,2]
[353141188,1739597443332,-787.64604424,8.972e-05,2]
[353141189,1739597443343,-27.35395576,8.972e-05,2]
[353141190,1739597443397,-612.004984,8.972e-05,2]
[353141191,1739597443408,-418.53106024,8.972e-05,2]
[353141192,1739597443418,-500.0,8.972e-05,2]
[353141193,1739597443428,-500.0,8.972e-05,2]
[353141194,1739597443437,-669.55,8.972e-05,2]
[353141195,1739597443448,-740.19,8.972e-05,2]
[353141196,1739597443457,-855.91,8.972e-05,2]
[353141197,1739597443467,-2813.87,8.972e-05,2]
[353141198,1739597443476,-500.0,8.972e-05,2]
[353141199,1739597443486,-500.0,8.972e-05,2]
[353141200,1739597443495,-402.988965,8.972e-05,2]
[353141201,1739597443504,-500.0,8.972e-05,2]
[353141202,1739597443514,-854.95802048,8.972e-05,2]
[353141207,1739597446304,-3128.37197952,8.972e-05,2]
[353141208,1739597446316,-500.0,8.972e-05,2]
[353141209,1739597446326,-500.0,8.972e-05,2]
[353141210,1739597446337,-500.0,8.972e-05,2]
[353141211,1739597446346,-5677.14,8.972e-05,2]
[353141212,1739597446357,-500.0,8.972e-05,2]
[353141213,1739597446367,-500.0,8.972e-05,2]
[353141214,1739597446377,-500.0,8.972e-05,2]
[353141215,1739597446387,-500.0,8.972e-05,2]
[353141216,1739597446397,-8522.73258781,8.972e-05,2]
[353141217,1739597458137,2589.73021472,8.845e-05,2]
[353141221,1739597770350,3108.4565174,0.00018,30]
[353141223,1739597831803,24900.0,7.973e-05,2]
[353141271,1739598632563,-412.4159266,8.888e-05,2]
[353141272,1739598632573,-300.0,8.967e-05,2]
[353141273,1739598632583,-4015.27,8.968e-05,2]
[353141274,1739598632593,-1531.9,8.968e-05,2]
[353141275,1739598632603,-1242.96,8.968e-05,2]
[353141276,1739598632612,-500.0,8.968e-05,2]
[353141277,1739598632622,-500.0,8.968e-05,2]
[353141278,1739598632631,-500.0,8.969e-05,2]
[353141279,1739598632641,-500.0,8.969e-05,2]
[353141280,1739598632651,-500.0,8.969e-05,2]
[353141281,1739598632661,-500.0,8.969e-05,2]
[353141282,1739598632671,-500.0,8.969e-05,2]
[353141283,1739598632681,-500.0,8.969e-05,2]
[353141284,1739598632691,-500.0,8.969e-05,2]
[353141285,1739598632711,-2579.75,8.969e-05,2]
[353141286,1739598632724,-500.0,8.969e-05,2]
[353141287,1739598632736,-500.0,8.969e-05,2]
[353141288,1739598632747,-500.0,8.969e-05,2]
[353141290,1739598632757,-500.0,8.969e-05,2]
[353141292,1739598632767,-500.0,8.969e-05,2]
[353141294,1739598632777,-500.0,8.969e-05,2]
[353141296,1739598632787,-7119.62,8.969e-05,2]
[353141298,1739598632797,-500.0,8.969e-05,2]
[353141300,1739598632808,-762.6,8.969e-05,2]
[353141302,1739598632818,-500.0,8.969e-05,2]
[353141304,1739598632828,-500.0,8.969e-05,2]
[353141306,1739598632838,-510.57,8.969e-05,2]
[353141307,1739598632848,-696.1128075,8.969e-05,2]
[353141308,1739598632865,-140.4671925,8.969e-05,2]
[353141310,1739598632875,-500.0,8.969e-05,2]
[353141312,1739598632885,-105.8683655,8.969e-05,2]
[353141315,1739598632898,-394.1316345,8.969e-05,2]
[353141317,1739598632907,-500.0,8.969e-05,2]
[353141319,1739598632917,-106.72305267,8.969e-05,2]
[353141321,1739598632929,-393.27694733,8.969e-05,2]
[353141323,1739598632940,-500.0,8.969e-05,2]
[353141325,1739598632950,-500.0,8.969e-05,2]
[353141327,1739598632961,-500.0,8.969e-05,2]
[353141329,1739598632970,-419.52305267,8.969e-05,2]
[353141330,1739598632983,-82.19377005,8.969e-05,2]
[353141331,1739598632993,-1013.81,8.969e-05,2]
[353141332,1739598633002,-641.65,8.969e-05,2]
[353141333,1739598633013,-500.0,8.969e-05,2]
[353141334,1739598633023,-500.0,8.969e-05,2]
[353141335,1739598633034,-2144.3112696,8.969e-05,2]
[353141348,1739598638404,-2472.26,8.968e-05,2]
[353141349,1739598638414,-1066.26183453,8.969e-05,2]
[353141350,1739598638465,-2230.01689587,8.969e-05,2]
[353141351,1739598638474,-500.0,8.969e-05,2]
[353141352,1739598638484,-762.76,8.969e-05,2]
[353141353,1739598638494,-576.30614907,8.969e-05,2]
[353141354,1739598638507,-10690.04068353,8.969e-05,2]
[353141355,1739598638520,-3817.6031674,8.969e-05,2]
[353141358,1739598638529,-500.0,8.969e-05,2]
[353141360,1739598638538,-500.0,8.969e-05,2]
[353141361,1739598638548,-500.0,8.969e-05,2]
[353141362,1739598638558,-500.0,8.969e-05,2]
[353141364,1739598638568,-2866.83,8.969e-05,2]
[353141365,1739598638577,-500.0,8.969e-05,2]
[353141366,1739598638587,-500.0,8.969e-05,2]
[353141367,1739598638596,-697.0,8.969e-05,2]
[353141368,1739598638605,-997.02,8.969e-05,2]
[353141369,1739598638615,-500.0,8.969e-05,2]
[353141370,1739598638625,-500.0,8.969e-05,2]
[353141371,1739598638636,-500.0,8.969e-05,2]
[353141372,1739598638647,-1048.93,8.969e-05,2]
[353141373,1739598638658,-7136.33,8.969e-05,2]
[353141374,1739598638668,-500.0,8.969e-05,2]
[353141375,1739598638677,-500.0,8.969e-05,2]
[353141376,1739598638688,-500.0,8.969e-05,2]
[353141377,1739598638698,-500.0,8.969e-05,2]
[353141378,1739598638708,-3678.17,8.969e-05,2]
[353141379,1739598638717,-1717.96,8.969e-05,2]
[353141380,1739598638727,-3555.38,8.969e-05,2]
[353141381,1739598638739,-500.0,8.969e-05,2]
[353141382,1739598638748,-500.0,8.969e-05,2]
[353141383,1739598638759,-500.0,8.969e-05,2]
[353141384,1739598638768,-5216.06,8.969e-05,2]
[353141385,1739598638778,-500.0,8.969e-05,2]
[353141386,1739598638787,-500.0,8.969e-05,2]
[353141387,1739598638797,-6628.253554,8.969e-05,2]
[353141393,1739598640772,-334.98124228,8.969e-05,2]
[353141394,1739598640787,-566.17152,8.969e-05,2]
[353141395,1739598640799,-398.076,8.969e-05,2]
[353141401,1739598643615,-500.0,8.968e-05,2]
[353141402,1739598643626,-1435.50768372,8.969e-05,2]
[353141403,1739598643636,-705.29184382,8.969e-05,2]
[353141404,1739598643676,-52.79815618,8.969e-05,2]
[353141405,1739598643686,-500.0,8.969e-05,2]
[353141406,1739598643696,-51.20184382,8.969e-05,2]
[353141415,1739598646414,-448.79815618,8.969e-05,2]
[353141416,1739598646424,-500.0,8.969e-05,2]
[353141417,1739598646572,-500.0,8.969e-05,2]
[353141418,1739598646583,-500.0,8.969e-05,2]
[353141419,1739598646592,-501.80361588,8.969e-05,2]
[353141420,1739598646602,-538.52793173,8.969e-05,2]
[353141421,1739598646611,-2437.52,8.969e-05,2]
[353141422,1739598646619,-500.0,8.97e-05,2]
[353141423,1739598646629,-500.0,8.97e-05,2]
[353141424,1739598646638,-1416.64,8.97e-05,2]
[353141425,1739598646648,-500.0,8.97e-05,2]
[353141426,1739598646657,-1201.64,8.97e-05,2]
[353141427,1739598646667,-1162.11,8.97e-05,2]
[353141428,1739598646677,-500.0,8.97e-05,2]
[353141429,1739598646688,-2199.99,8.97e-05,2]
[353141430,1739598646697,-500.0,8.97e-05,2]
[353141431,1739598646707,-1955.04,8.97e-05,2]
[353141432,1739598646716,-1133.8,8.97e-05,2]
[353141433,1739598646726,-500.0,8.97e-05,2]
[353141434,1739598646735,-500.0,8.97e-05,2]
[353141435,1739598646745,-507.39665245,8.97e-05,2]
[353141436,1739598646756,-500.0,8.97e-05,2]
[353141437,1739598646766,-500.0,8.97e-05,2]
[353141438,1739598646775,-1197.87,8.97e-05,2]
[353141439,1739598646785,-500.0,8.97e-05,2]
[353141440,1739598646795,-1733.84,8.97e-05,2]
[353141441,1739598646804,-606.07,8.97e-05,2]
[353141442,1739598646813,-500.0,8.97e-05,2]
[353141443,1739598646823,-1305.66,8.97e-05,2]
[353141444,1739598646833,-1218.31,8.97e-05,2]
[353141445,1739598646843,-500.0,8.97e-05,2]
[353141446,1739598646853,-538.01,8.97e-05,2]
[353141447,1739598646862,-636.32095941,8.97e-05,2]
[353141448,1739598646871,-500.0,8.97e-05,2]
[353141449,1739598646881,-1285.05,8.97e-05,2]
[353141450,1739598646891,-500.0,8.97e-05,2]
[353141451,1739598646900,-500.0,8.97e-05,2]
[353141452,1739598646909,-500.0,8.97e-05,2]
[353141453,1739598646919,-526.98,8.97e-05,2]
[353141454,1739598646930,-541.51,8.97e-05,2]
[353141455,1739598646940,-500.0,8.97e-05,2]
[353141456,1739598646950,-500.0,8.97e-05,2]
[353141457,1739598646960,-877.42,8.97e-05,2]
[353141458,1739598646970,-1899.96,8.97e-05,2]
[353141459,1739598646980,-7485.82,8.97e-05,2]
[353141460,1739598646990,-500.0,8.97e-05,2]
[353141461,1739598647000,-500.0,8.97e-05,2]
[353141462,1739598647009,-1156.99,8.97e-05,2]
[353141463,1739598647019,-544.9,8.97e-05,2]
[353141464,1739598647029,-500.0,8.97e-05,2]
[353141465,1739598647038,-567.22,8.97e-05,2]
[353141466,1739598647048,-500.0,8.97e-05,2]
[353141467,1739598647057,-500.0,8.97e-05,2]
[353141468,1739598647068,-331.58742456,8.97e-05,2]
[353141469,1739598647078,-1473.91,8.97e-05,2]
[353141470,1739598647089,-6898.59,8.97e-05,2]
[353141471,1739598647103,-500.0,8.97e-05,2]
[353141472,1739598647112,-2470.27,8.97e-05,2]
[353141473,1739598647121,-3702.53,8.97e-05,2]
[353141474,1739598647131,-500.0,8.97e-05,2]
[353141475,1739598647140,-570.02860475,8.97e-05,2]
[353141476,1739598647149,-611.8,8.97e-05,2]
[353141477,1739598647159,-3091.13,8.97e-05,2]
[353141478,1739598647168,-8822.90048253,8.97e-05,2]
[353141479,1739598647193,-24043.40951747,8.97e-05,2]
[353141480,1739598647202,-5956.80265253,8.97e-05,2]
[353141510,1739599833020,-549.5760886,8.888e-05,2]
[353141511,1739599833030,-300.0,8.942e-05,2]
[353141512,1739599833041,-272.99513265,8.943e-05,2]
[353141513,1739599833050,-251.29383787,8.943e-05,2]
[353141514,1739599833060,-500.0,8.943e-05,2]
[353141515,1739599833070,-436.03494088,8.943e-05,2]
[353141516,1739599833114,-71.58573722,8.943e-05,2]
[353141517,1739599833124,-208.2444775,8.943e-05,2]
[353141518,1739599833143,-291.7555225,8.943e-05,2]
[353141519,1739599833152,-490.3694775,8.943e-05,2]
[353141520,1739599838831,-9.6305225,8.943e-05,2]
[353141521,1739599838842,-500.0,8.943e-05,2]
[353141522,1739599838852,-3847.96,8.965e-05,2]
[353141523,1739599838862,-1468.07,8.965e-05,2]
[353141524,1739599838871,-1191.17,8.965e-05,2]
[353141525,1739599838881,-500.0,8.965e-05,2]
[353141526,1739599838891,-500.0,8.965e-05,2]
[353141527,1739599838900,-500.0,8.965e-05,2]
[353141528,1739599838912,-2369.25,8.965e-05,2]
[353141529,1739599838922,-500.0,8.966e-05,2]
[353141530,1739599838932,-730.82,8.966e-05,2]
[353141531,1739599838943,-6822.97,8.966e-05,2]
[353141532,1739599838954,-801.72,8.966e-05,2]
[353141533,1739599838963,-500.0,8.966e-05,2]
[353141534,1739599838973,-971.56,8.966e-05,2]
[353141535,1739599838983,-614.91,8.966e-05,2]
[353141536,1739599838993,-500.0,8.966e-05,2]
[353141537,1739599839003,-500.0,8.966e-05,2]
[353141539,1739599839014,-488.52500316,8.966e-05,2]
[353141541,1739599839024,-500.0,8.966e-05,2]
[353141543,1739599839034,-500.0,8.966e-05,2]
[353141544,1739599839044,-500.0,8.966e-05,2]
[353141546,1739599839054,-500.0,8.966e-05,2]
[353141548,1739599839064,-500.0,8.966e-05,2]
[353141550,1739599839078,-500.0,8.966e-05,2]
[353141552,1739599839088,-500.0,8.966e-05,2]
[353141554,1739599839098,-419.49814918,8.966e-05,2]
[353141556,1739599839107,-461.30945869,8.966e-05,2]
[353141558,1739599839117,-500.0,8.966e-05,2]
[353141559,1739599839127,-503.07686475,8.966e-05,2]
[353141561,1739599839136,-500.0,8.966e-05,2]
[353141563,1739599839145,-174.61453874,8.966e-05,2]
[353141564,1739599839154,-500.0,8.966e-05,2]
[353141566,1739599839165,-500.0,8.966e-05,2]
[353141567,1739599839174,-500.0,8.966e-05,2]
[353141568,1739599839184,-500.0,8.966e-05,2]
[353141569,1739599839195,-500.0,8.966e-05,2]
[353141571,1739599839204,-402.96688032,8.966e-05,2]
[353141573,1739599839214,-5213.9,8.966e-05,2]
[353141574,1739599839223,-14455.45,8.966e-05,2]
[353141576,1739599839233,-3619.98,8.966e-05,2]
[353141577,1739599839244,-500.0,8.966e-05,2]
[353141578,1739599839253,-2747.37,8.966e-05,2]
[353141579,1739599839269,-500.0,8.966e-05,2]
[353141580,1739599839279,-667.96,8.966e-05,2]
[353141581,1739599839288,-5984.1,8.966e-05,2]
[353141582,1739599839298,-1005.23,8.966e-05,2]
[353141583,1739599839307,-500.0,8.966e-05,2]
[353141584,1739599839317,-500.0,8.966e-05,2]
[353141585,1739599839326,-500.0,8.966e-05,2]
[353141586,1739599839335,-1646.38,8.966e-05,2]
[353141587,1739599839345,-3524.92,8.966e-05,2]
[353141588,1739599839355,-500.0,8.966e-05,2]
[353141589,1739599839364,-296.35938849,8.966e-05,2]
[353141590,1739599839374,-3407.24,8.966e-05,2]
[353141591,1739599839384,-726.5,8.966e-05,2]
[353141592,1739599839393,-4998.72,8.966e-05,2]
[353141593,1739599839403,-8972.86,8.966e-05,2]
[353141594,1739599839412,-342.4850485,8.966e-05,2]
[353141595,1739599839425,-1993.4649515,8.966e-05,2]
[353141596,1739599839434,-1000.72373972,8.966e-05,2]
[353141597,1739599839445,-500.0,8.967e-05,2]
[353141598,1739599839455,-500.0,8.967e-05,2]
[353141599,1739599839464,-500.0,8.967e-05,2]
[353141600,1739599839473,-478.29700674,8.967e-05,2]
[353141884,1739599846769,-522.2,8.966e-05,2]
[353141886,1739599846780,-21.70299326,8.967e-05,2]
[353141888,1739599846789,-500.0,8.967e-05,2]
[353141890,1739599846799,-108.69848931,8.967e-05,2]
[353142247,1739599986493,418.18341049,0.000179,30]
[353142253,1739600178521,2662.80308386,0.00019,120]
[353142255,1739600258312,9889.8329465,7.966e-05,2]
[353142257,1739600354111,1000.0,0.00019,120]
[353142334,1739601038009,-366.3840591,8.882e-05,2]
[353142336,1739601038022,-500.0,8.943e-05,2]
[353142337,1739601038032,-403.95091158,8.943e-05,2]
[353142338,1739601038042,-500.0,8.943e-05,2]
[353142340,1739601038051,-500.0,8.943e-05,2]
[353142343,1739601038062,-300.0,8.96e-05,2]
[353142346,1739601038072,-5683.04,8.961e-05,2]
[353142348,1739601038081,-3687.63,8.961e-05,2]
[353142351,1739601038093,-1141.54,8.961e-05,2]
[353142353,1739601038104,-500.0,8.961e-05,2]
[353142355,1739601038113,-500.0,8.961e-05,2]
[353142357,1739601038123,-700.37,8.962e-05,2]
[353142359,1739601038133,-500.0,8.962e-05,2]
[353142361,1739601038143,-6538.68,8.962e-05,2]
[353142363,1739601038152,-768.32,8.962e-05,2]
[353142364,1739601038162,-500.0,8.962e-05,2]
[353142365,1739601038172,-931.08,8.962e-05,2]
[353142366,1739601038181,-589.29,8.962e-05,2]
[353142367,1739601038190,-500.0,8.962e-05,2]
[353142368,1739601038200,-202.77705306,8.962e-05,2]
[353142369,1739601038210,-586.45136363,8.962e-05,2]
[353142370,1739601038219,-500.0,8.962e-05,2]